Cogmind - Beta 9.2 @@@ ROGUE MODE // 2019.11.13 @ 14:51:27 Player: Demise Result: Smashed by cave-in Performance ------------- Evolutions (0) 0 Regions Visited (4) 800 Robots Destroyed (27) 135 Value Destroyed (312) 312 Prototype IDs (22) 440 Alien Tech Used (0) 0 Bonus (300) 300 TOTAL SCORE: 1987 Bonus ------- Aligned with FarCom 300 Cogmind --------- Core Integrity 0/250 Matter 259/300 Energy 100/100 System Corruption 17% Temperature Cool (0) Movement Core (1400) Ox27 Location -9/Mines Parts ------- > --- POWER (1) -------- (None) > --- PROPULSION (2) --- (None) > --- UTILITY (2) ------ Humpback > --- WEAPON (2) ------- Assault Rifle > --- INVENTORY (24) --- High-capacity Storage Unit High-capacity Storage Unit High-capacity Storage Unit High-capacity Storage Unit Medium Matter Pod (50) Sensor Array Improved Terrain Scanner Modified TNC Assault Rifle Peak State ------------ > --- POWER ------------ Ion Engine > --- PROPULSION ------- Wheel Wheel > --- UTILITY ---------- Small Storage Unit Improved Terrain Scanner > --- WEAPON ----------- Light Assault Rifle Light Assault Rifle > --- INVENTORY -------- Ion Engine Aluminum Leg Tractor Beam Small Laser [Rating: 8] Favorites ----------- Power Ion Engine Engine Ion Engine Propulsion Wheel Leg Aluminum Leg Wheel Wheel Utility Seismic Analyzer Device Improved Terrain Scanner Storage Humpback Processor Seismic Analyzer Weapon Assault Rifle Ballistic Gun Assault Rifle Launcher Grenade Launcher Special Weapon Mining Laser Build | -11 -10 -10 -10 -9 ------- Run | Scr Mat Min Exi Min Slots Evolved . | . . . . . Power . | . . . . . Propulsion . | . . . . . Utility . | . . . . . Weapon . | . . . . . Parts Attached 32 | 7 12 4 3 6 Power . | . . . . . Engine . | . . . . . Core . | . . . . . Reactor . | . . . . . Propulsion 5 | 3 1 1 . . Treads . | . . . . . Leg . | . . . . . Wheel 5 | 3 1 1 . . Hover . | . . . . . Flight . | . . . . . Utility 7 | 4 . 1 2 . Device 4 | 3 . 1 . . Storage 2 | . . . 2 . Processor 1 | 1 . . . . Hackware . | . . . . . Protection . | . . . . . Artifact . | . . . . . Weapon 20 | . 11 2 1 6 Energy Gun . | . . . . . Energy Cannon . | . . . . . Ballistic Gun 12 | . 8 1 1 2 Ballistic Cannon . | . . . . . Launcher 1 | . . . . 1 Special Weapon 7 | . 3 1 . 3 Impact Weapon . | . . . . . Slashing Weapon . | . . . . . Piercing Weapon . | . . . . . Special Melee Weapon . | . . . . . Unidentified Prototypes . | . . . . . Parts Lost 5 | . . . . 5 Power 1 | . . . . 1 Propulsion 2 | . . . . 2 Utility . | . . . . . Weapon 2 | . . . . 2 Highest Loss Streak 5 | . . . . 5 Average Slot Usage (%) 94 | . 98 100 94 82 Engine 13 | . 14 14 14 13 Wheel 27 | . 26 28 28 27 Device 8 | . 14 14 5 . Storage 5 | . . . 8 14 Processor 9 | . 14 14 8 . Ballistic Gun 23 | . 24 22 24 21 Special Weapon 4 | . 3 5 3 6 Naked Turns . | . . . . . Heaviest Build 89 | 12 10 10 89 89 Greatest Support 20 | 20 20 20 20 20 Greatest Overweight (x) 8 | 1 . . 4 8 Average Overweight (x) 1 | . . . 1 4 Largest Inventory Capacity 24 | 6 4 4 24 24 Average Capacity 10 | 5 4 4 12 24 Most Carried 10 | 6 4 4 10 10 Average Carried 5 | 4 3 4 5 9 Final Capacity 24 | 4 4 4 24 24 Final Carried 10 | 4 4 4 10 9 Class Distribution -------------------- 53% | Mutant 28% | Hauler-Mutant 18% | Scavenger-Mutant Dominant Class ---------------- Mutant | -10/Materials Mutant | -10/Mines Mutant | -10/Exiles Hauler-Mutant | -9/Mines Resources | -11 -10 -10 -10 -9 ----------- Run | Scr Mat Min Exi Min Matter Collected 687 | 353 61 157 50 66 Remotely 42 | 42 . . . . Salvage Created 594 | 224 80 125 . 165 Parts 45 | 20 8 11 . 6 Haulers Intercepted . | . . . . . Recyclers Shooed . | . . . . . Parts Field Recycled . | . . . . . Retrieved Matter . | . . . . . Parts Self-Destructed . | . . . . . Prevented . | . . . . . Kills | -11 -10 -10 -10 -9 ------- Run | Scr Mat Min Exi Min Combat Hostiles Destroyed 16 | . 6 4 . 6 Guns 14 | . 6 4 . 4 AOE 2 | . . . . 2 Classes Destroyed 6 | 3 1 1 . 1 Worker 4 | 2 . 1 . 1 Tunneler 6 | 5 . 1 . . Recycler 1 | 1 . . . . Swarmer 9 | . 6 3 . . Grunt 5 | . . 1 . 4 Assembled 2 | . . . . 2 Best Kill Streak 5 | 4 3 5 . 4 Combat Bots Only 4 | . 3 4 . 4 Max Kills in Single Turn 2 | 1 1 2 . 1 Gunslinging 1 | . . 1 . . Exploded 1 | . . . . 1 Melee . | . . . . . Uniques/NPCs Destroyed . | . . . . . Combat | -11 -10 -10 -10 -9 -------- Run | Scr Mat Min Exi Min Damage Taken 1274 | . 199 74 178 823 Core 285 | . 61 47 17 160 Absorbed by Shields . | . . . . . Core Remaining (%) 100 | 100 . . . . Volleys Fired 77 | 19 22 9 . 27 Largest 2 | 2 2 2 . 2 Hottest 100 | 40 100 100 . 100 Shots Fired 125 | 38 38 16 . 33 Gun 98 | 38 32 14 . 14 Cannon . | . . . . . Launcher 3 | . . . . 3 Special 24 | . 6 2 . 16 Kinetic 98 | 38 32 14 . 14 Thermal 24 | . 6 2 . 16 Explosive 3 | . . . . 3 Electromagnetic . | . . . . . Robot Hit Streak 7 | 7 4 6 . 7 Robot Miss Streak 3 | 3 3 2 . 1 Penetration Max . | . . . . . Secondary Targets 2 | . . 2 . . Max Gunslinging Chain 1 | . . 1 . . Shots Hit Robots 61 | 21 18 8 . 14 Core Hits 41 | 14 8 7 . 12 Critical Hits . | . . . . . Critical Kills . | . . . . . Critical Parts Destroyed . | . . . . . Melee Attacks . | . . . . . Impact . | . . . . . Slashing . | . . . . . Piercing . | . . . . . Sneak Attacks . | . . . . . Combat Hostiles . | . . . . . Follow-up Attacks . | . . . . . Damage Inflicted 806 | 203 148 122 . 333 Guns 602 | 203 148 122 . 129 Cannons . | . . . . . Explosions 204 | . . . . 204 Melee . | . . . . . Ramming . | . . . . . Kinetic 602 | 203 148 122 . 129 Thermal . | . . . . . Explosive 204 | . . . . 204 Electromagnetic . | . . . . . Impact . | . . . . . Slashing . | . . . . . Piercing . | . . . . . Highest Corruption 12 | . . . . 12 Average Corruption 8 | . . . . 8 Corruption Purged . | . . . . . Effects 3 | . . . . 3 Data Loss (minor) 1 | . . . . 1 Targeting Errors 2 | . . . . 2 Overload Shots . | . . . . . Overflow Damage . | . . . . . Projectiles . | . . . . . Explosions . | . . . . . Melee . | . . . . . Knockbacks . | . . . . . Impact . | . . . . . Kinetic . | . . . . . Secondary . | . . . . . Self-Inflicted Damage 54 | . . . . 54 Shots 2 | . . . . 2 Rammed . | . . . . . Targets Rammed . | . . . . . Kicked . | . . . . . Crushed . | . . . . . Highest Temperature 60 | . 20 20 . 60 Average Temperature 19 | . 12 12 . 22 Received Heat Transfer 36 | . . 18 6 12 Siege Activations . | . . . . . Robots Corrupted . | . . . . . Combat Hostiles . | . . . . . Parts Fried . | . . . . . Impact Corruptions . | . . . . . Robots Melted . | . . . . . Combat Hostiles . | . . . . . Parts Melted . | . . . . . Heat Transferred . | . . . . . Parts Sabotaged . | . . . . . Parts Stolen . | . . . . . Parts Stripped . | . . . . . Power Chain Reactions . | . . . . . Missiles Intercepted . | . . . . . Alert | -11 -10 -10 -10 -9 ------- Run | Scr Mat Min Exi Min Peak Influence 226 | 40 226 187 . 60 Average Influence 96 | 21 139 157 . 3 Maximum Alert Level 1 | . 1 . . . Low Security (%) 94 | 100 80 100 . 100 Level 1 5 | . 20 . . . Level 2 . | . . . . . Level 3 . | . . . . . Level 4 . | . . . . . Level 5 . | . . . . . High Security . | . . . . . Max Security . | . . . . . Squads Dispatched 3 | . 3 . . . Investigation 1 | . 1 . . . Extermination . | . . . . . Reinforcement 2 | . 2 . . . Assault . | . . . . . Garrison . | . . . . . Intercept . | . . . . . Construction Impeded . | . . . . . Haulers Reinforced . | . . . . . Stealth | -11 -10 -10 -10 -9 --------- Run | Scr Mat Min Exi Min Distress Signals . | . . . . . Communications Jammed . | . . . . . Distress Signals . | . . . . . Times Spotted 27 | . 14 4 3 6 Peak Tracking Total 4 | . 3 4 4 3 Tactical Retreats 3 | . 2 . 1 . Traps | -11 -10 -10 -10 -9 ------- Run | Scr Mat Min Exi Min Traps Triggered . | . . . . . Indirectly . | . . . . . Trap Hack Attempts . | . . . . . Triggered . | . . . . . Disarmed . | . . . . . Reprogrammed . | . . . . . Reused . | . . . . . Traps Extracted . | . . . . . Installed . | . . . . . Triggered . | . . . . . Machines | -11 -10 -10 -10 -9 ---------- Run | Scr Mat Min Exi Min Machines Disabled . | . . . . . Max in Single Turn . | . . . . . Machines Sabotaged . | . . . . . Garrisons Compromised . | . . . . . Overloaded Fab Kills . | . . . . . Fab Network Shutdowns . | . . . . . Hacking | -11 -10 -10 -10 -9 --------- Run | Scr Mat Min Exi Min Machines Accessed 5 | . 4 . 1 . Terminals 3 | . 3 . . . Fabricators . | . . . . . Repair Stations 1 | . 1 . . . Recycling Units . | . . . . . Scanalyzers . | . . . . . Garrison Access . | . . . . . Total Hacks 11 | . 10 . 1 . Successful 6 | . 5 . 1 . Failed 5 | . 5 . . . Catastrophic . | . . . . . Database Lockouts . | . . . . . Manual 9 | . 8 . 1 . Terminals 8 | . 8 . . . Fabricators . | . . . . . Repair Stations 2 | . 2 . . . Recycling Units . | . . . . . Scanalyzers . | . . . . . Garrison Access . | . . . . . Terminal Hacks 3 | . 2 . 1 . Part Schematic 1 | . 1 . . . Branch Access Points 1 | . 1 . . . EX-Prototype ID Bank 1 | . . . 1 . Fabricator Hacks . | . . . . . Repair Station Hacks 2 | . 2 . . . Scan Component 1 | . 1 . . . Repair 1 | . 1 . . . Recycling Unit Hacks . | . . . . . Scanalyzer . | . . . . . Garrison Access Hacks . | . . . . . Unauthorized Hacks 6 | . 6 . . . Terminals 1 | . 1 . . . Botnet 1 | . 1 . . . Fabricators . | . . . . . Repair Stations . | . . . . . Recycling Units . | . . . . . Scanalyzers . | . . . . . Garrison Access . | . . . . . Data Cores Recovered . | . . . . . Used . | . . . . . Hacking Detections 4 | . 4 . . . Full Trace Events 1 | . 1 . . . Feedback Events . | . . . . . Feedback Blocked . | . . . . . Robot Schematics Acquired . | . . . . . Robots Built . | . . . . . Matter . | . . . . . Time . | . . . . . Total Robot Build Rating . | . . . . . Part Schematics Acquired 1 | . 1 . . . Parts Built . | . . . . . Matter . | . . . . . Time . | . . . . . Total Part Build Rating . | . . . . . Parts Repaired 1 | . 1 . . . Time 26 | . 26 . . . Parts Recycled . | . . . . . Recycled Matter . | . . . . . Retrieved Matter . | . . . . . Retrieved Components . | . . . . . Parts Scanalyzed . | . . . . . Part Schematics Acquired . | . . . . . Parts Damaged . | . . . . . Bothacking | -11 -10 -10 -10 -9 ------------ Run | Scr Mat Min Exi Min Used RIF Installer . | . . . . . Robots Hacked . | . . . . . Non-combat . | . . . . . Combat . | . . . . . Robot Hacks Applied . | . . . . . Relay Couplers Released . | . . . . . Robots Rewired . | . . . . . Allies Hacked . | . . . . . Hacks Repelled . | . . . . . Allies | -11 -10 -10 -10 -9 -------- Run | Scr Mat Min Exi Min Total Allies . | . . . . . Largest Group . | . . . . . Highest-Rated Group . | . . . . . Highest-Rated Ally . | . . . . . Total Orders . | . . . . . Ally Attacks . | . . . . . Total Damage . | . . . . . Kills . | . . . . . Allies Corrupted . | . . . . . Allies Melted . | . . . . . Intel | -11 -10 -10 -10 -9 ------- Run | Scr Mat Min Exi Min Robot Analysis Total . | . . . . . Derelict Logs Recovered 2 | . . 1 . 1 Drone Launches . | . . . . . Drone Recoveries . | . . . . . Exploration | -11 -10 -10 -10 -9 ------------- Run | Scr Mat Min Exi Min Turns Passed 1453 | 131 325 393 304 300 Spaces Moved 1050 | 61 232 285 310 162 Core . | . . . . . Treads . | . . . . . Legs 13 | 13 . . . . Wheels 1037 | 48 232 285 310 162 Hover . | . . . . . Flight . | . . . . . Fastest Speed 80 | 80 80 80 80 120 Average Speed 90 | 89 80 80 93 120 Slowest Speed 160 | 120 80 80 120 160 Overloaded Moves . | . . . . . Propulsion Burnouts . | . . . . . Robots Hopped . | . . . . . Cave-ins Triggered 3 | . . . . 3 Exploration Rate (%) 39 | 4 54 52 69 20 Regions Visited 4 Branch Regions 3 Pre-discovered Areas 1 | . . 1 . . Known Exits Taken 1 | . 1 . . . Unknown Exits Taken 3 | 1 . 1 1 . Scrap Searched 1 | . . 1 . . Spaces Dug 24 | . 6 2 . 16 Terrain Destroyed 39 | . 6 2 . 31 Melee . | . . . . . Projectile 14 | . 6 2 . 6 AOE 25 | . . . . 25 Actions | -11 -10 -10 -10 -9 --------- Run | Scr Mat Min Exi Min Total 1387 | 108 328 428 323 200 Wait 195 | 9 51 130 . 5 Move 1046 | 60 231 284 309 162 Hop . | . . . . . Pick Up 15 | 4 3 . 8 . Fast Attach 6 | 2 3 . 1 . Attach 2 | 1 . . . 1 Detach 2 | 1 . . 1 . Swap 24 | 4 9 4 2 5 Drop 20 | 8 9 1 2 . Fire 77 | 19 22 9 . 27 Melee . | . . . . . Ram . | . . . . . Kick . | . . . . . Crush . | . . . . . Escape Stasis . | . . . . . Rewire . | . . . . . Trap . | . . . . . Miscellaneous . | . . . . . Route ------- -11/Scrapyard -10/Materials (discovered 2 exits: [*Mat] / *Min) -10/Mines (discovered 2 exits: [*Mat] / *Exi) -10/Exiles -9/Mines History --------- Turn | Location | Event 17 | -11/Scrapyard | Discovered new exit (range 3) 132 | -11/Scrapyard | Entered Materials 343 | -10/Materials | Repaired Wheel 392 | -10/Materials | Identified exit to Mines 414 | -10/Materials | Discovered new exit (range 16) 457 | -10/Materials | Entered Mines 494 | -10/Mines | Learned Materials stockpile data 509 | -10/Mines | Learned location of Storage (-9) 589 | -10/Mines | Discovered new exit (range 6) 847 | -10/Mines | Deemed a non-threat by the Exiles lab entrance 847 | -10/Mines | Discovered new exit (range 5) 850 | -10/Mines | Entered Exiles 856 | -10/Exiles | Build established: Mutant 870 | -10/Exiles | Met 8R-AWN 883 | -10/Exiles | Met EX-HEX 905 | -10/Exiles | Met EX-BIN 915 | -10/Exiles | Aligned with FarCom system 916 | -10/Exiles | Given EX-Vault access code 935 | -10/Exiles | Opened EX-Vault 955 | -10/Exiles | Warned to stay clear of 0b10 Research branches 970 | -10/Exiles | Exiles lab attacked by MAIN.C 974 | -10/Exiles | Found Modified TNC 1145 | -10/Exiles | Discovered new exit (range 10) 1154 | -10/Exiles | Left Exiles lab with Modified TNC 1154 | -10/Exiles | Entered Mines 1240 | -9/Mines | Learned Materials stockpile data 1278 | -9/Mines | Excavation squad dispatched 1278 | -9/Mines | A large section of the Mines collapsed 1377 | -9/Mines | Build established: Hauler-Mutant 1436 | -9/Mines | Crushed by falling debris 1446 | -9/Mines | Crushed by falling debris 1446 | -9/Mines | System corruption reached 10% 1455 | -9/Mines | Crushed by falling debris 1455 | -9/Mines | Smashed by cave-in Last Messages --------------- 01443_ Destroyed Lgt. Ion Engine. 01443_ K-01 Serf collects debris. 01444_ T-07 Excavator is excavating. 01445_ G-34 Mercenary destroyed. 01446_ The unstable cave ceiling collapses. 01446_ Crushed by falling debris. 01446_ Wheel destroyed. 01446_ System corrupted by crushing effect (+3). 01446_ Grenade Launcher destroyed. 01446_ System corrupted by crushing effect (+3). 01448_ System corrupted: Assault Rifle targeting data glitched. 01448_ G-34 Mercenary destroyed. 01451_ K-01 Serf collects debris. 01452_ G-34 Mercenary destroyed. 01454_ K-01 Serf collects debris. 01454_ Acquired 35 matter. 01455_ The unstable cave ceiling collapses. 01455_ Crushed by falling debris. 01455_ Wheel destroyed. 01455_ System corrupted by crushing effect (+5). Map ----- +----------------------------------------------------+ | ?????????????????????????????????????????## ##?? | | ????????????????????????????????????????## #?? | | ???????????????????????????????????????## #??? | | ??????????????????????????????????????## ###??? | | ?????????????????????????????????????## ##????? | | ????????????????????????????????????## ######## | | ???????????????????????????????????## ## # | | ???????????????????????????????????# ## # | | ???????????????????????????????????# # | | ???????????????????????????????????## #### # | | ????????????????????????????????????## ##??# # | | ?????????????????????????????????????# #???# # | | ?????????????????????????????????????# #???# # | | ?????????????????????????????????????# #???# # | | ?????????????????????????????????????# #???####### | | ?????????????????????????????????????# #?????????? | | ?????????????????????????????????????# #?????????? | | ?????????????????#???########????????# ####??????? | | ?????????????????# ??# # ######???# #??????? | | ?????????###?????# ## #???### #??????? | | ????????? ??????? ! * #?????# #??????? | | ?????????# #?????????# %= % % ##????# #??????? | | ?????????# #?????????# [ ##???# #??????? | | ?????????# ####???????# ##?## ##?????? | | ????????## ##???????# = " #?# ##????? | | ????????# ##??????##@# " "#?# #????? | | ????????# ##??????#[ ##?# ##???? | | ????????## #####??#### t" ###??# #???? | | ?????????## ##???# ##????# #???? | | ??????????## #??## #?????# ##???? | | ???????????# #### #?????# ###????? | | ???????????# #????## ##??????? | | ???????????## ##?### #???????? | | ????????????### ######### ### ##???????? | | ??????????????#####???????### ##????????? | | ????????????????????????????## ##?????????? | | ?????????????????????????????##########??????????? | | ?????????????????????????????????????????????????? | | | | | | | | | | | | | | | | | | | | | | | | | +----------------------------------------------------+ Best States ------------- Heat Dissipation 25 Energy Generation 10 Energy Capacity 250 Matter Stores 300 Matter Capacity 300 Sight Range 16 Robot Scan Range 10 Terrain Scan Range 16 Terrain Scan Density 60 Evasion (%) 44 Item Schematics ----------------- Hcp. Storage Unit | -10/Materials | Hacked Robot Schematics ------------------ None Fabricated ------------ Nothing Alien Tech Used ----------------- None Achievements -------------- None Challenges ------------ None Game ------ Seed AccelerationModifiedThrower Manual? 0 Play Time 00:20:16 Cumulative 116.0 hours Start 2019.11.13 @ 14:33:46 End 2019.11.13 @ 14:51:27 Sessions 1 Manual Loads 0 Difficulty Rogue Special Mode None Game No. 154 Rogue 143 Adventurer 11 Explorer 0 Win Type - Total 0 Types 0/0/0/0/0/0/0 Lore% 43 Gallery% 54 Achievement% 37 Wizard Run 0 Options --------- ASCII 0 Keyboard 1 Movement Numpad Keybinds 0 Fullscreen 1 Font 12/Terminus Map View 83x54 Tactical HUD 1 Map Filters NONE Filters NONE Steam 1 RUN: d0b56d54-2ec7-4c16-a525-4115a1627994